bitfinex-derivatives/quotes_BNBF0:USTF0_20250316
["timestamp","ask_amount","ask_price","bid_price","bid_amount"]
[1742165888901,0.27294399,600.3,598.91,0.33393999]
[1742165889101,0.27294399,600.3,598.92,0.30655085]
[1742165889308,0.27294399,600.3,598.93,0.33392883]
[1742165889500,0.27294399,600.3,598.94,0.30655085]
[1742165889705,0.27294399,600.3,598.95,0.33391768]
[1742165889902,0.27294399,600.3,598.96,0.30655085]
[1742165890204,0.27294399,600.3,598.97,0.33390653]
[1742165890405,0.27294399,600.3,598.98,0.30655085]
[1742165890607,0.27294399,600.3,598.99,0.33389539]
[1742165890804,0.27294399,600.3,599.0,0.30655085]
[1742165891008,0.27294399,600.3,599.01,0.33388424]
[1742165891208,0.27294399,600.3,599.02,0.30655085]
[1742165891812,0.27294399,600.3,599.03,0.33387309]
[1742165892010,0.27294399,600.3,599.04,0.30655085]
[1742165892209,0.27294399,600.3,599.05,0.33386194]
[1742165892411,0.27294399,600.3,599.06,0.30655085]
[1742165892611,0.27294399,600.3,599.07,0.3338508]
[1742165892815,0.27294399,600.3,599.08,0.30655085]
[1742165893016,0.27294399,600.3,599.09,0.33383965]
[1742165893208,0.27294399,600.3,599.1,0.30655085]
[1742165893413,0.27294399,600.3,599.11,0.33382851]
[1742165893611,0.27294399,600.3,599.12,0.30655085]
[1742165893814,0.27294399,600.3,599.13,0.33381736]
[1742165895718,0.27294399,600.3,599.14,0.306484]
[1742165896514,0.27294399,600.3,599.15,0.33380622]
[1742165896811,0.27294399,600.3,599.16,0.306484]
[1742165897017,0.27294399,600.3,599.17,0.33379508]
[1742165897217,0.27293541,600.29,599.17,0.33379508]
[1742165897516,0.27293541,600.28,599.17,0.33379508]
[1742165897717,0.27293541,600.3,599.17,0.33379508]
[1742165897916,0.27293541,600.29,599.17,0.33379508]
[1742165898117,0.27293541,600.3,599.17,0.33379508]
[1742165898321,0.27293541,600.29,599.17,0.33379508]
[1742165898511,0.27293541,600.3,599.17,0.33379508]
[1742165898712,0.27293541,600.29,599.17,0.33379508]
[1742165899116,0.27293541,600.28,599.17,0.33379508]
[1742165899314,0.27293541,600.27,599.17,0.33379508]
[1742165899517,0.27293541,600.3,599.17,0.33379508]
[1742165899817,0.27293541,600.29,599.17,0.33379508]
[1742165900016,0.27293541,600.3,599.17,0.33379508]
[1742165900817,0.27282908,600.29,599.17,0.33379508]
[1742165901018,0.27282908,600.3,599.17,0.33379508]
[1742165901220,0.27282908,600.29,599.17,0.33379508]
[1742165901517,0.3331612,600.31,599.17,0.33379508]
[1742165901518,0.27282908,600.28,599.17,0.33379508]
[1742165901716,0.27282908,600.3,599.17,0.93879508]
[1742165901914,0.27282908,600.29,599.17,0.93879508]
[1742165902118,0.27282908,600.3,599.17,0.93879508]
[1742165908014,0.3331723,600.29,599.17,0.93879508]
[1742165908219,0.27282908,600.28,599.17,0.93879508]
[1742165908419,0.3331834,600.27,599.17,0.93879508]
[1742165908622,0.27282908,600.26,599.17,0.93879508]
[1742165909120,0.3331945,600.25,599.17,0.93879508]
[1742165909316,0.27282908,600.24,599.17,0.93879508]
[1742165910222,0.3332056,600.23,599.17,0.93879508]
[1742165910427,0.27282908,600.22,599.17,0.93879508]
[1742165917932,0.3332167,600.21,599.17,0.605]
[1742165918126,0.27282908,600.2,599.17,0.605]
[1742165918329,0.33322781,600.19,599.17,0.605]
[1742165918531,0.27282908,600.18,599.17,0.605]
[1742165918730,0.33323891,600.17,599.17,0.605]
[1742165919129,0.27281587,600.16,599.17,0.605]
[1742165919330,0.33325002,600.15,599.17,0.605]
[1742165919533,0.27281587,600.14,599.17,0.605]
[1742165919729,0.33326112,600.13,599.17,0.605]
[1742165919929,0.27281587,600.12,599.17,0.605]
[1742165920130,0.33327223,600.11,599.17,0.605]
[1742165920433,0.27281587,600.1,599.17,0.605]
[1742165920635,0.33328334,600.09,599.17,0.605]
[1742165920933,0.27281587,600.08,599.17,0.605]
[1742165921134,0.33329444,600.07,599.17,0.605]
[1742165921336,0.27281587,600.06,599.17,0.605]
[1742165921535,0.33330555,600.05,599.17,0.605]
[1742165921735,0.27281587,600.04,599.17,0.605]
[1742165921937,0.33331666,600.03,599.17,0.605]
[1742165922136,0.27281587,600.02,599.17,0.605]
[1742165922333,0.33332777,600.01,599.17,0.605]
[1742165922538,0.27281587,600.0,599.17,0.605]
[1742165922837,0.33333888,599.99,599.17,0.605]
[1742165923041,0.27281587,599.98,599.17,0.605]
[1742165923247,0.33335,599.97,599.17,0.605]
[1742165923539,0.27281587,599.96,599.17,0.605]
[1742165923734,0.33336111,599.95,599.17,0.605]
[1742165923933,0.27281587,599.94,599.17,0.605]
[1742165924638,0.33336111,599.95,599.17,0.605]
[1742165924837,0.27293918,599.94,599.17,0.605]
[1742165931953,0.60617467,599.93,599.17,0.605]
[1742165932154,0.27280245,599.92,599.17,0.605]
[1742165932956,0.33338334,599.91,599.17,0.605]
[1742165933256,0.27280245,599.9,599.17,0.605]
[1742165933458,0.33339445,599.89,599.17,0.605]
[1742165933658,0.27280245,599.88,599.17,0.605]
[1742165933956,0.33340557,599.87,599.17,0.605]
[1742165934252,0.27280245,599.86,599.17,0.605]
[1742165934558,0.33341668,599.85,599.17,0.605]
[1742165934753,0.27280245,599.84,599.17,0.605]
[1742165934959,0.3334278,599.83,599.17,0.605]
[1742165935152,0.27280245,599.82,599.17,0.605]
[1742165935357,0.33343892,599.81,599.17,0.605]
[1742165935860,0.27275888,599.8,599.17,0.605]
[1742165936060,0.33345004,599.79,599.17,0.605]
[1742165936261,0.27275888,599.78,599.17,0.605]
[1742165936561,0.33346116,599.77,597.13,1.23991176]
[1742165936761,0.27275888,599.76,597.26,0.33486253]
[1742165936961,0.33352789,599.65,597.27,0.30708787]
[1742165937161,0.27275888,599.64,597.28,0.30708787]
[1742165937358,0.33354457,599.62,597.39,0.33478966]
[1742165937560,0.27275888,599.61,597.4,0.30708787]
[1742165937763,0.27275888,599.61,597.4,0.59785598]
[1742165937961,0.27275888,599.61,597.41,0.30708787]
[1742165938160,0.33356126,599.59,597.52,0.33471682]
[1742165938361,0.27275888,599.58,597.53,0.30708787]
[1742165938558,0.27275888,599.58,597.63,0.33465522]
[1742165938756,0.33357795,599.56,597.64,0.30708787]
[1742165938959,0.33357795,599.56,597.66,0.33463842]
[1742165939261,0.27258404,599.55,597.67,0.30700954]
[1742165939463,0.27258404,599.55,597.69,0.33462162]
[1742165939757,0.33358908,599.54,597.7,0.30700954]
[1742165940063,0.27258404,599.53,597.72,0.33460483]
[1742165940264,0.27258404,599.53,597.73,0.30700954]
[1742165940557,0.33360021,599.52,597.75,0.33458803]
[1742165940962,0.27256484,599.51,597.76,0.30702259]
[1742165941162,0.33361134,599.5,597.78,0.33457124]
[1742165941365,0.27256484,599.49,597.79,0.30702259]
[1742165941666,0.33362247,599.48,597.81,0.33455445]
[1742165942065,0.27256484,599.47,597.82,0.30702259]
[1742165942266,0.27256323,599.46,597.84,0.33453766]
[1742165942463,0.33362247,599.48,597.85,0.30702975]
[1742165942464,0.27256323,599.47,597.85,0.30702975]
[1742165942661,0.27256323,599.46,597.85,0.30702975]
[1742165942865,0.27256323,599.47,597.85,0.30702975]
[1742165943063,0.27256323,599.46,597.85,0.30702975]
[1742165943263,0.27256323,599.47,597.85,0.30702975]
[1742165943960,0.33362247,599.48,597.84,0.33453766]
[1742165944158,0.27256251,599.47,597.85,0.30702753]
[1742165944362,0.3336336,599.46,597.87,0.33452088]
[1742165944565,0.27256251,599.45,597.88,0.30702753]
[1742165944763,0.27256251,599.45,597.9,0.33450409]
[1742165944964,0.33364473,599.44,597.91,0.30702753]
[1742165945166,0.27256251,599.43,597.93,0.33448731]
[1742165945367,0.27256251,599.43,597.94,0.30702753]
[1742165945565,0.27256251,599.43,597.96,0.33447053]
[1742165945766,0.27256251,599.43,597.97,0.30702753]
[1742165945965,0.27256251,599.43,597.99,0.33445375]
[1742165946161,0.27256251,599.43,598.0,0.30702753]
[1742165946369,0.27256251,599.43,598.01,0.33444256]
[1742165946567,0.27256251,599.43,598.02,0.30702753]
[1742165946769,0.27256251,599.43,598.03,0.33443138]
[1742165947067,0.27256251,599.43,598.04,0.30702753]
[1742165947264,0.27256251,599.43,598.05,0.33442019]
[1742165947465,0.27256251,599.43,598.06,0.30702753]
[1742165947666,0.33364473,599.44,598.07,0.33440901]
[1742165947866,0.33364473,599.44,598.08,0.30702753]
[1742165948067,0.27265021,599.43,598.09,0.33439783]
[1742165948267,0.27265021,599.43,598.1,0.30702753]
[1742165948467,0.27265021,599.43,598.11,0.33438665]
[1742165948667,0.33364473,599.44,598.12,0.30702753]
[1742165948866,0.27264376,599.43,598.12,0.30702753]
[1742165949468,0.33364473,599.44,598.12,0.30702753]
[1742165950175,0.27260699,599.43,598.13,0.33437547]
[1742165951172,0.27260699,599.43,598.14,0.30695915]
[1742165951373,0.33364473,599.44,598.15,0.33436428]
[1742165951568,0.27261282,599.43,598.15,0.33436428]
[1742165951767,0.27261282,599.43,598.16,0.30696578]
[1742165952072,0.27261282,599.43,598.17,0.33435311]
[1742165952974,0.27261282,599.43,598.18,0.30695089]
[1742165953174,0.27261282,599.43,598.19,0.33434193]
[1742165954778,0.33364473,599.44,598.19,0.33434193]
[1742165954975,0.27262656,599.43,598.19,0.33434193]
[1742165955575,0.33365586,599.42,598.19,0.33434193]
[1742165955781,0.27262656,599.41,598.19,0.33434193]
[1742165955980,0.333667,599.4,598.19,0.33434193]
[1742165956282,0.27262656,599.39,598.19,0.33434193]
[1742165956477,0.33367813,599.38,598.19,0.33434193]
[1742165956874,0.27262656,599.37,598.19,0.33434193]
[1742165957179,0.33368926,599.36,598.19,0.33434193]
[1742165957679,0.27238826,599.35,598.19,0.33434193]
[1742165957980,0.3337004,599.34,598.19,0.33434193]
[1742165958177,0.27238826,599.33,598.19,0.33434193]
[1742165958377,0.33371153,599.32,598.19,0.33434193]
[1742165958680,0.27238826,599.31,598.19,0.33434193]
[1742165962579,0.27224041,599.3,598.19,0.33434193]
[1742165962782,0.27224041,599.31,598.19,0.33434193]
[1742165962976,0.27224041,599.3,598.19,0.33434193]
[1742165963173,0.27224041,599.29,598.19,0.33434193]
[1742165963476,0.33371153,599.32,598.19,0.33434193]
[1742165963477,0.27224041,599.28,598.19,0.33434193]
[1742165963780,0.60597979,599.27,598.19,0.33434193]
[1742165963982,0.27224041,599.26,598.19,0.33434193]
[1742165965078,0.272173,599.25,598.19,0.33434193]
[1742165965279,0.272173,599.24,598.19,0.33434193]
[1742165965480,0.272173,599.26,598.19,0.33434193]
[1742165965680,0.272173,599.25,598.19,0.33434193]
[1742165965878,0.272173,599.26,598.19,0.33434193]
[1742165966079,0.272173,599.25,598.19,0.33434193]
[1742165966282,0.27217085,599.24,598.19,0.33434193]
[1742165966481,0.27217085,599.23,598.19,0.33434193]
[1742165966683,0.27217085,599.26,598.19,0.33434193]
[1742165966881,0.27217085,599.25,598.19,0.33434193]
[1742165967079,0.27217085,599.26,598.19,0.33434193]
[1742165969980,0.2719754,599.25,598.19,0.33434193]
[1742165970178,0.2719754,599.24,598.19,0.33434193]
[1742165970380,0.2719754,599.26,598.19,0.33434193]
[1742165970582,0.2719754,599.25,598.19,0.33434193]
[1742165970785,0.2719754,599.26,598.19,0.33434193]
[1742165973885,0.33373938,599.27,598.19,0.33434193]
[1742165973886,0.2720238,599.25,598.19,0.33434193]
[1742165974078,0.2720238,599.26,598.19,0.33434193]
[1742165974278,0.2720238,599.25,598.19,0.33434193]
[1742165974586,0.2720238,599.24,598.19,0.33434193]
[1742165974784,0.2720238,599.26,598.19,0.33434193]
[1742165974985,0.2720238,599.25,598.19,0.33434193]
[1742165975185,0.2720238,599.24,598.19,0.33434193]
[1742165975385,0.2720238,599.26,598.19,0.33434193]
[1742165975582,0.2720238,599.25,598.19,0.33434193]
[1742165975782,0.33373938,599.27,598.19,0.33434193]
[1742165975783,0.2720238,599.26,598.19,0.33434193]
[1742165975978,0.2720238,599.25,598.19,0.33434193]
[1742165976184,0.2720238,599.24,598.19,0.33434193]
[1742165976379,0.2720238,599.23,598.19,0.33434193]
[1742165976584,0.2720238,599.26,598.19,0.33434193]
[1742165976785,0.2720238,599.25,598.19,0.33434193]
[1742165976982,0.2720238,599.26,598.19,0.33434193]
[1742165979589,0.33373938,599.27,598.19,0.33434193]
[1742165981790,0.27223227,599.26,598.2,0.30697153]
[1742165981987,0.27223227,599.26,598.21,0.33433075]
[1742165982291,0.33373938,599.27,598.21,0.33433075]
[1742165983289,0.27221784,599.26,598.21,0.33433075]
[1742165984889,0.33373938,599.27,598.21,0.33433075]
[1742165986494,0.27223565,599.26,598.22,0.30695947]
[1742165987094,0.27223565,599.26,598.23,0.727]
[1742165988388,0.27223508,599.25,598.23,0.727]
[1742165988693,0.27223508,599.24,598.23,0.727]
[1742165988893,0.27223508,599.26,598.23,0.727]
[1742165989991,0.33373938,599.27,598.23,0.727]
[1742165990191,0.27224161,599.26,598.23,0.727]
[1742165990593,0.33373938,599.27,598.23,0.727]
[1742166002496,0.27218685,599.26,598.23,0.727]
[1742166006615,0.27218685,599.26,598.24,0.30697758]
[1742166007106,3.60501971,599.79,598.24,0.30697758]
[1742166007412,0.33346116,599.77,598.24,0.30697758]
[1742166007613,0.2722198,599.76,598.24,0.30697758]
[1742166007811,0.33346116,599.77,598.23,0.727]
[1742166008009,0.33346116,599.77,598.24,0.33431398]
[1742166008612,0.27225901,599.76,598.25,0.3069309]
[1742166008812,0.33347228,599.75,598.26,0.33430281]
[1742166009213,0.27225901,599.74,598.27,0.3069309]
[1742166010214,0.27225901,599.74,598.28,0.33429163]
[1742166010418,0.60576116,599.73,598.29,0.30685939]
[1742166010613,0.60576672,599.72,598.3,0.33428046]
[1742166010814,0.27227776,599.71,598.31,0.30685939]
[1742166011219,0.27227776,599.71,598.32,0.33426928]
[1742166011419,0.27227776,599.71,598.33,0.30685939]
[1742166011619,0.27227776,599.71,598.34,0.33425811]
[1742166011819,0.27227776,599.71,598.35,0.30685939]
[1742166013521,0.27227776,599.71,598.36,0.33424694]
[1742166013721,0.27227776,599.71,598.37,0.30685939]
[1742166013916,0.33348896,599.72,598.38,0.64110936]
[1742166013917,0.27228333,599.7,598.38,0.64110936]
[1742166014117,0.27228333,599.71,598.39,0.64110378]
[1742166014316,0.27228333,599.7,598.4,0.64109819]
[1742166014517,0.27228333,599.71,598.41,0.64109261]
[1742166014718,0.27228333,599.7,598.42,0.3068736]
[1742166015023,0.27228333,599.69,598.43,0.33420784]
[1742166015220,0.27228333,599.71,598.44,0.3068736]
[1742166015521,0.27228333,599.7,598.45,0.33419667]
[1742166015724,0.27228333,599.71,598.45,0.33419667]
[1742166015917,0.27228566,599.7,598.45,0.33419667]
[1742166016118,0.27228566,599.71,598.45,0.33419667]
[1742166016322,0.27228566,599.7,598.45,0.33419667]
[1742166016523,0.33348896,599.72,598.45,0.33419667]
[1742166025327,0.27257971,599.71,598.46,0.30677691]
[1742166025527,0.27257971,599.71,598.48,0.33417992]
[1742166025729,0.27257971,599.71,598.49,0.30677691]
[1742166025927,0.27257971,599.71,598.5,0.33416875]
[1742166026429,0.27257971,599.71,598.51,0.30677721]
[1742166026726,0.27257971,599.71,598.52,0.33415758]
[1742166026927,0.27257971,599.71,598.53,0.30677721]
[1742166027228,0.27257971,599.71,598.54,0.33414642]
[1742166027423,0.33348896,599.72,598.54,0.33414642]
[1742166027424,0.33348896,599.72,598.55,0.30674826]
[1742166027725,0.33348896,599.72,598.56,0.33413525]
[1742166027922,0.33348896,599.72,598.57,0.30674826]
[1742166028228,0.33348896,599.72,598.58,0.33412409]
[1742166029122,0.33348896,599.72,598.59,0.30672128]
[1742166029527,0.33348896,599.72,598.6,0.33411293]
[1742166029828,0.33348896,599.72,598.61,0.30672214]
[1742166030127,0.33348896,599.72,598.62,0.33410176]
[1742166032029,0.2726352,599.71,598.63,0.30673934]
[1742166033026,0.2726352,599.71,598.64,0.3340906]
[1742166033228,0.2726352,599.71,598.65,0.30673934]
[1742166033528,0.2726352,599.71,598.66,0.33407944]
[1742166033720,0.2726352,599.71,598.67,0.30673934]
[1742166034127,0.2726352,599.71,598.68,0.33406828]
[1742166034330,0.2726352,599.71,598.69,0.30673934]
[1742166034624,0.2726352,599.71,598.7,0.33405712]
[1742166034829,0.2726352,599.71,598.71,0.30673934]
[1742166035122,0.2726352,599.71,598.72,0.33404596]
[1742166035330,0.2726352,599.71,598.73,0.30673934]
[1742166035528,3.12953165,600.35,598.74,0.3340348]
[1742166035828,0.3331501,600.33,598.75,0.30673934]
[1742166036024,0.2726352,600.32,598.76,0.33402364]
[1742166036226,0.33316674,600.3,598.76,0.33402364]
[1742166036432,0.27267172,600.29,598.77,0.30667738]
[1742166036730,0.3331834,600.27,598.78,0.33401249]
[1742166036931,0.27267172,600.26,598.79,0.30667738]
[1742166037131,0.27267172,600.26,598.8,0.33400133]
[1742166037432,0.3331945,600.25,598.81,0.30667738]
[1742166037625,0.27267172,600.24,598.82,0.33399018]
[1742166037824,0.3332056,600.23,598.82,0.33399018]
[1742166038224,0.27267995,600.22,598.83,0.30667257]
[1742166038426,0.27267995,600.22,598.84,0.33397902]
[1742166038634,0.3332167,600.21,598.84,0.33397902]
[1742166038832,0.27267995,600.2,598.85,0.30666745]
[1742166039033,0.33322781,600.19,598.85,0.30666745]
[1742166039231,0.27267995,600.18,598.85,0.30666745]
[1742166039633,0.33323891,600.17,598.85,0.30666745]
[1742166039827,0.27267995,600.16,598.85,0.30666745]
[1742166040033,0.33325002,600.15,598.85,0.30666745]
[1742166040333,0.27267995,600.14,598.85,0.30666745]
[1742166040927,0.33326112,600.13,598.85,0.30666745]
[1742166041133,0.27267995,600.12,598.85,0.30666745]
[1742166041332,0.60594662,600.12,598.85,0.30666745]
[1742166041528,0.27267995,600.11,598.85,0.30666745]
[1742166041733,0.27284703,600.1,598.86,0.30664352]
[1742166041929,0.27284703,600.11,598.86,0.30664352]
[1742166042133,0.27284703,600.11,598.87,0.33396229]
[1742166042329,0.27284703,600.11,598.88,0.30664352]
[1742166042532,0.27284703,600.11,598.89,0.33395114]
[1742166042841,0.27284703,600.11,598.9,0.30664352]
[1742166048144,0.27284703,600.11,598.9,0.29907356]
[1742166049242,0.2725594,600.1,598.91,0.30655899]
[1742166049443,0.2725594,600.09,598.9,0.30655899]
[1742166049643,0.2725594,600.08,598.9,0.30655899]
[1742166049844,0.2725594,600.07,598.9,0.30655899]
[1742166050143,0.33326667,600.12,598.9,0.30655899]
[1742166050144,0.2725594,600.06,598.9,0.30655899]
[1742166050344,0.2725594,600.11,598.9,0.30655899]
[1742166050645,0.2725594,600.1,598.9,0.30655899]
[1742166050844,0.2725594,600.11,598.9,0.30655899]
[1742166051040,0.2725594,600.09,598.92,0.33393441]
[1742166051238,0.2725594,600.08,598.93,0.30655899]
[1742166051440,0.2725594,600.11,598.94,0.33392326]
[1742166051640,0.2725594,600.11,598.95,0.30655899]
[1742166051841,0.27253506,600.1,598.96,0.64043567]
[1742166052051,0.27253506,600.11,598.97,0.64043009]
[1742166052242,0.27253506,600.1,598.98,0.64042452]
[1742166052547,0.27253506,600.09,598.99,0.33389539]
[1742166052847,0.27253506,600.08,598.99,0.33389539]
[1742166053047,0.27248219,600.07,598.99,0.33389539]
[1742166053246,0.27248219,600.11,598.99,0.33389539]
[1742166053442,0.27248219,600.06,598.99,0.33389539]
[1742166053645,0.27248219,600.05,598.99,0.33389539]
[1742166053841,0.27247482,600.11,598.99,0.33389539]
[1742166054047,0.33326667,600.12,598.99,0.33389539]
[1742166054246,0.27247368,600.11,598.99,0.33389539]
[1742166054943,0.27247461,600.1,598.99,0.33389539]
[1742166055147,0.27247461,600.11,598.99,0.33389539]
[1742166055344,0.27247461,600.1,598.99,0.33389539]
[1742166055546,0.27247461,600.09,598.99,0.33389539]
[1742166055742,0.27247461,600.08,598.99,0.33389539]
[1742166055947,0.27247461,600.11,598.99,0.33389539]
[1742166056143,0.27247461,600.1,598.99,0.33389539]
[1742166056347,0.27247461,600.11,598.99,0.33389539]
[1742166056648,0.27247461,600.1,598.99,0.33389539]
[1742166056850,0.27247461,600.11,598.99,0.33389539]
[1742166057047,0.27247461,600.1,598.99,0.33389539]
[1742166057247,0.33326667,600.12,598.99,0.33389539]
[1742166063258,0.29014507,601.15,599.0,0.30652025]
[1742166063457,0.33275101,601.05,599.0,0.30652025]
[1742166063652,0.27305007,601.04,599.0,0.30652025]
[1742166063859,0.27305007,601.03,599.0,0.30652025]
[1742166064159,0.27305007,601.02,599.0,0.30652025]
[1742166064460,0.27305007,601.01,599.0,0.30652025]
[1742166064660,0.27305007,601.0,599.0,0.30652025]
[1742166064856,0.27305007,600.99,599.0,0.30652025]
[1742166065060,0.27305007,600.98,599.0,0.30652025]
[1742166065560,0.27305007,600.97,598.99,0.33389539]
[1742166065765,0.27305007,600.96,599.01,0.517]
[1742166065961,0.27305007,600.95,599.01,0.517]
[1742166066160,0.27305007,600.94,599.02,0.33387866]
[1742166066353,0.29015838,601.07,599.02,0.33387866]
[1742166066354,0.332823,600.92,599.02,0.33387866]
[1742166066556,0.27305007,600.91,599.02,0.33387866]
[1742166066761,0.33283962,600.89,599.02,0.33387866]
[1742166066961,0.27305007,600.88,599.02,0.33387866]
[1742166067162,0.27306481,600.87,599.02,0.33387866]
[1742166067458,0.27306481,600.86,599.02,0.33387866]
[1742166067664,0.27306481,600.88,599.02,0.33387866]
[1742166067962,0.27306481,600.87,599.02,0.33387866]
[1742166068158,0.27306481,600.88,599.02,0.33387866]
[1742166068357,0.33285623,600.86,599.02,0.33387866]
[1742166068562,0.27306481,600.85,599.02,0.33387866]
[1742166068758,0.33287285,600.83,599.02,0.33387866]
[1742166068960,0.27304792,600.82,599.02,0.33387866]
[1742166069156,0.33288948,600.8,599.02,0.33387866]
[1742166069462,0.27304792,600.79,599.02,0.33387866]
[1742166070061,0.3329061,600.77,599.02,0.33387866]
[1742166070262,0.27304792,600.76,599.02,0.33387866]
[1742166070462,0.33292272,600.74,599.02,0.33387866]
[1742166070659,0.27304792,600.73,599.02,0.33387866]
[1742166071258,0.33293935,600.71,599.02,0.33387866]
[1742166071457,0.27304792,600.7,599.02,0.33387866]
[1742166071664,0.33295598,600.68,599.02,0.33387866]
[1742166071863,0.27304792,600.67,599.02,0.33387866]
[1742166072064,0.33297261,600.65,599.02,0.33387866]
[1742166072263,0.27304792,600.64,599.02,0.33387866]
[1742166073065,0.33298924,600.62,599.02,0.33387866]
[1742166073264,0.27304792,600.61,599.02,0.33387866]
[1742166074061,0.33300587,600.59,599.02,0.33387866]
[1742166074365,0.27304792,600.58,599.02,0.33387866]
[1742166074561,0.33302251,600.56,599.02,0.33387866]
[1742166074761,0.27304456,600.55,599.02,0.33387866]
[1742166074960,0.33303914,600.53,599.02,0.33387866]
[1742166075166,0.27304456,600.52,599.02,0.33387866]
[1742166075568,0.33305024,600.51,599.03,0.30655126]
[1742166075768,0.27304456,600.5,599.04,0.33386752]
[1742166075966,0.33306133,600.49,599.04,0.33386752]
[1742166076163,0.27304456,600.48,599.04,0.33386752]
[1742166076468,0.33307242,600.47,599.04,0.33386752]
[1742166076660,0.27304456,600.46,599.04,0.33386752]
[1742166076862,0.33308352,600.45,599.04,0.33386752]
[1742166077065,0.27304456,600.44,599.04,0.33386752]
[1742166077267,0.33309461,600.43,599.04,0.33386752]
[1742166077467,0.27304456,600.42,599.04,0.33386752]
[1742166078269,0.27304456,600.42,599.05,0.30655217]
[1742166078667,0.27304456,600.42,599.06,0.33385637]
[1742166078863,0.33310571,600.41,599.06,0.33385637]
[1742166079067,0.27304456,600.4,599.06,0.33385637]
[1742166080970,0.3331168,600.39,599.06,0.33385637]
[1742166081170,0.27304456,600.38,599.06,0.33385637]
[1742166083075,0.60616691,600.38,599.06,0.33385637]
[1742166083274,0.27304456,600.37,599.06,0.33385637]
[1742166089178,0.33313345,600.36,599.06,0.33385637]
[1742166089781,0.27296902,600.35,599.06,0.33385637]
[1742166089980,0.33314455,600.34,599.06,0.33385637]
[1742166090278,0.27296902,600.33,599.06,0.33385637]
[1742166090475,0.33315565,600.32,599.06,0.33385637]
[1742166090779,0.27296902,600.31,599.06,0.33385637]
[1742166090979,0.60613022,600.31,599.06,0.33385637]
[1742166091179,0.27296902,600.3,599.06,0.33385637]
[1742166091381,0.3331612,600.31,599.06,0.33385637]
[1742166091582,0.27297173,600.3,599.06,0.33385637]
[1742166092283,0.25909288,600.3,599.06,0.33385637]
[1742166096177,0.25909288,600.3,599.07,0.30654022]
[1742166096375,0.25909288,600.3,599.08,0.33384522]
[1742166096777,0.25909288,600.3,599.09,0.30654022]
[1742166097085,0.25909288,600.3,599.1,0.33383408]
[1742166097285,0.25909288,600.3,599.11,0.30654022]
[1742166097482,0.25909288,600.3,599.12,0.33382294]
[1742166097683,0.25909288,600.3,599.13,0.30654022]
[1742166097884,0.25909288,600.3,599.14,0.33381179]
[1742166098080,0.25909288,600.3,599.15,0.30654022]
[1742166098284,0.25909288,600.3,599.15,0.33380622]
[1742166099091,0.25909288,600.3,599.16,0.30649942]
[1742166099288,0.25909288,600.3,599.17,0.33379508]
[1742166100795,0.3331723,600.29,599.01,0.517]
[1742166100994,0.25909288,600.28,599.01,0.517]
[1742166101297,0.3331834,600.27,599.01,0.517]
[1742166101596,0.25909288,600.26,599.01,0.517]
[1742166101896,0.3331945,600.25,599.01,0.517]
[1742166102194,0.25909288,600.24,599.01,0.517]
[1742166102491,0.3332056,600.23,599.01,0.517]
[1742166102690,0.25909288,600.22,599.01,0.517]
[1742166102897,0.3332167,600.21,599.01,0.517]
[1742166103091,0.25909288,600.2,599.01,0.517]
[1742166103587,0.25909288,600.2,599.02,0.33387866]
[1742166104296,0.2728219,600.19,599.02,0.33387866]
[1742166104493,0.2728219,600.2,599.02,0.33387866]
[1742166104794,0.2728219,600.19,599.02,0.33387866]
[1742166104993,0.2728219,600.2,599.02,0.33387866]
[1742166105492,0.2728219,600.2,599.03,0.30656556]
[1742166106395,0.27284354,600.19,599.04,0.30656355]
[1742166106591,0.27284354,600.18,599.05,0.30656355]
[1742166106797,0.27284354,600.2,599.03,0.30656355]
[1742166106995,0.27284354,600.19,599.02,0.33387866]
[1742166107296,0.27284354,600.18,599.03,0.30656344]
[1742166107491,0.27284354,600.2,599.03,0.30656344]
[1742166108194,0.27284354,600.2,599.03,0.94256344]
[1742166108390,0.27284354,600.2,599.04,0.30656344]
[1742166109096,0.27284354,600.2,599.05,0.33386194]
[1742166109298,0.27284354,600.2,599.06,0.30656344]
[1742166109598,0.27284354,600.2,599.06,0.33385637]
[1742166109995,0.27284353,600.19,599.06,0.33385637]
[1742166110198,0.27284353,600.2,599.06,0.33385637]
[1742166110398,0.27284353,600.19,599.06,0.33385637]
[1742166110594,0.27284353,600.2,599.06,0.33385637]
[1742166114894,0.3332167,600.21,599.06,0.33385637]
[1742166120504,0.27276944,600.2,599.06,0.33385637]
[1742166120705,0.3332167,600.21,599.06,0.33385637]
[1742166120898,0.27276762,600.2,599.06,0.33385637]
[1742166125105,0.27276762,600.2,599.06,0.99485637]
[1742166125904,0.27277693,600.19,599.06,0.99485637]
[1742166126103,0.27277693,600.18,599.06,0.99485637]
[1742166126304,0.27277693,600.17,599.06,0.99485637]
[1742166126507,0.27277693,600.2,599.06,0.99485637]
[1742166126807,0.27277693,600.19,599.06,0.99485637]
[1742166127106,0.27277693,600.18,599.06,0.99485637]
[1742166127306,0.27277693,600.2,599.06,0.99485637]
[1742166131805,0.3332167,600.21,599.06,0.99485637]